Workbook

Sheet Equation 6
A1: For Illustration Purposes - Equation 6 - Made up data for fifty segments of two-lane, two-way rural roads
A2: Data | G2: Computations | L2: Results
F3: Observed | H3: Cumul Nu | J3: Crashes+ | K3: Cum kj*Crashes2 | L3: Estimate of | M3: Estimate of
A4: Site j | B4: RND | C4: Site J ID | D4: L | E4: AADT | F4: Crashes | G4: Nu | H4: 0 | I4: kj | J4: kj*Crashes2 | K4: 0 | L4: V{C} | M4: s{C}
A5: 1 | B5: 0.9661738009 | C5: R2 023 | D5: 0.07505908169 | E5: 3715.311843 | F5: 0 | G5: =D5*E5*365*EXP(-0.312)/1000000 -> 0.07450604405 | H5: =H4+G5 -> 0.07450604405 | I5: =0.236/D5 -> 3.144189813 | J5: =F5+I5*F5^2 -> 0 | K5: =K4+J5 -> 0 | L5: =K5/H5^2 -> 0
A6: 2 | B6: 0.9564281329 | C6: R2 054 | D6: 1.141275369 | E6: 219.7623684 | F6: 1 | G6: 0.06700955867 | H6: 0.1415156027 | I6: 0.2067862028 | J6: 1.206786203 | K6: 1.206786203 | L6: 60.25896743 | M6: =SQRT(L6) -> 7.762664969
A7: 3 | B7: 0.9528627401 | C7: R2 043 | D7: 0.9432010914 | E7: 2133.118167 | F7: 3 | G7: 0.5375417431 | H7: 0.6790573458 | I7: 0.2502117546 | J7: 5.251905791 | K7: 6.458691994 | L7: 14.00656596 | M7: 3.742534698
A8: 4 | B8: 0.9499273616 | C8: R2 065 | D8: 0.6577821466 | E8: 2568.541345 | F8: 0 | G8: 0.4514000768 | H8: 1.130457423 | I8: 0.3587814008 | J8: 0 | K8: 6.458691994 | L8: 5.054010671 | M8: 2.248112691
A9: 5 | B9: 0.9098392698 | C9: R2 032 | D9: 1.129150703 | E9: 1450.877272 | F9: 0 | G9: 0.4376990187 | H9: 1.568156441 | I9: 0.2090066448 | J9: 0 | K9: 6.458691994 | L9: 2.626429826 | M9: 1.620626368
A10: 6 | B10: 0.8983399913 | C10: R2 076 | D10: 0.9886167122 | E10: 2867.263129 | F10: 1 | G10: 0.757335795 | H10: 2.325492236 | I10: 0.2387173887 | J10: 1.238717389 | K10: 7.697409383 | L10: 1.423360131 | M10: 1.193046576
A11: 7 | B11: 0.8876840997 | C11: R2 134 | D11: 1.325824749 | E11: 2167.253082 | F11: 5 | G11: 0.7676950438 | H11: 3.09318728 | I11: 0.1780024096 | J11: 9.450060241 | K11: 17.14746962 | L11: 1.792204696 | M11: 1.338732496
A12: 8 | B12: 0.8423581116 | C12: R2 765 | D12: 0.7782336713 | E12: 2638.738002 | F12: 2 | G12: 0.5486549162 | H12: 3.641842196 | I12: 0.3032508213 | J12: 3.213003285 | K12: 20.36047291 | L12: 1.535131608 | M12: 1.239004281
A13: 9 | B13: 0.8374991088 | C13: R2 333 | D13: 0.7370658822 | E13: 3482.207379 | F13: 0 | G13: 0.685731226 | H13: 4.327573422 | I13: 0.3201884739 | J13: 0 | K13: 20.36047291 | L13: 1.087173784 | M13: 1.04267626
A14: 10 | B14: 0.8087551224 | C14: R2 099 | D14: 1.400072635 | E14: 1816.06828 | F14: 2 | G14: 0.6793220732 | H14: 5.006895495 | I14: 0.1685626832 | J14: 2.674250733 | K14: 23.03472364 | L14: 0.9188528199 | M14: 0.9585681092
A15: 11 | B15: 0.7819151985 | C15: R2 022 | D15: 0.3950371003 | E15: 872.4261429 | F15: 0 | G15: 0.09207877691 | H15: 5.098974272 | I15: 0.5974122427 | J15: 0 | K15: 23.03472364 | L15: 0.8859666308 | M15: 0.9412580043
A16: 12 | B16: 0.7733336466 | C16: R2 098 | D16: 0.8702205872 | E16: 833.964186 | F16: 0 | G16: 0.1938963974 | H16: 5.29287067 | I16: 0.2711956066 | J16: 0 | K16: 23.03472364 | L16: 0.8222434863 | M16: 0.9067764257
A17: 13 | B17: 0.7598416408 | C17: R2 234 | D17: 0.4824369964 | E17: 3645.62608 | F17: 1 | G17: 0.4699002904 | H17: 5.76277096 | I17: 0.4891830473 | J17: 1.489183047 | K17: 24.52390669 | L17: 0.7384599338 | M17: 0.8593369152
A18: 14 | B18: 0.7259350296 | C18: R2 123 | D18: 0.9305821106 | E18: 1239.350358 | F18: 1 | G18: 0.3081355329 | H18: 6.070906493 | I18: 0.2536047032 | J18: 1.253604703 | K18: 25.77751139 | L18: 0.6994133216 | M18: 0.8363093457
A19: 15 | B19: 0.7244192313 | C19: R2 555 | D19: 1.782446126 | E19: 1440.868742 | F19: 0 | G19: 0.6861733054 | H19: 6.757079799 | I19: 0.1324023186 | J19: 0 | K19: 25.77751139 | L19: 0.5645766232 | M19: 0.7513831401
A20: 16 | B20: 0.717699695 | C20: R2 443 | D20: 0.8572466048 | E20: 521.5175889 | F20: 0 | G20: 0.1194449299 | H20: 6.876524728 | I20: 0.2753000113 | J20: 0 | K20: 25.77751139 | L20: 0.5451336228 | M20: 0.7383316482
A21: 17 | B21: 0.6842001535 | C21: R2 767 | D21: 1.196392436 | E21: 943.0677363 | F21: 0 | G21: 0.3014460047 | H21: 7.177970733 | I21: 0.1972596891 | J21: 0 | K21: 25.77751139 | L21: 0.5003082 | M21: 0.7073246779
A22: 18 | B22: 0.6466492794 | C22: R2 236 | D22: 1.134502844 | E22: 3647.359549 | F22: 1 | G22: 1.105546852 | H22: 8.283517585 | I22: 0.2080206331 | J22: 1.208020633 | K22: 26.98553202 | L22: 0.3932795711 | M22: 0.6271200611
A23: 19 | B23: 0.6364614422 | C23: R2 763 | D23: 0.3109506077 | E23: 2842.635247 | F23: 0 | G23: 0.236159561 | H23: 8.519677146 | I23: 0.7589629806 | J23: 0 | K23: 26.98553202 | L23: 0.3717788757 | M23: 0.6097367266
A24: 20 | B24: 0.5696542251 | C24: R2 584 | D24: 1.440185258 | E24: 3283.007445 | F24: 0 | G24: 1.26323228 | H24: 9.782909426 | I24: 0.163867807 | J24: 0 | K24: 26.98553202 | L24: 0.2819648157 | M24: 0.5310035929
A25: 21 | B25: 0.5646764423 | C25: R2 942 | D25: 0.3930890131 | E25: 3817.131143 | F25: 0 | G25: 0.4008860763 | H25: 10.1837955 | I25: 0.6003729236 | J25: 0 | K25: 26.98553202 | L25: 0.2602026079 | M25: 0.5101005861
A26: 22 | B26: 0.5640781757 | C26: R2 583 | D26: 1.619451942 | E26: 3657.036417 | F26: 5 | G26: 1.582305494 | H26: 11.766101 | I26: 0.1457283133 | J26: 8.643207833 | K26: 35.62873986 | L26: 0.2573566047 | M26: 0.507303267
A27: 23 | B27: 0.5377167779 | C27: R2 947 | D27: 0.1530799909 | E27: 1630.927054 | F27: 0 | G27: 0.06670308967 | H27: 11.83280409 | I27: 1.541677646 | J27: 0 | K27: 35.62873986 | L27: 0.254463276 | M27: 0.5044435311
A28: 24 | B28: 0.5281326547 | C28: R2 396 | D28: 1.561644976 | E28: 1725.112811 | F28: 0 | G28: 0.719768431 | H28: 12.55257252 | I28: 0.1511226967 | J28: 0 | K28: 35.62873986 | L28: 0.2261179212 | M28: 0.4755185814
A29: 25 | B29: 0.5137115675 | C29: R2 483 | D29: 0.8619823797 | E29: 3461.327166 | F29: 1 | G29: 0.7971389409 | H29: 13.34971146 | I29: 0.2737874991 | J29: 1.273787499 | K29: 36.90252736 | L29: 0.2070676969 | M29: 0.4550469172
A30: 26 | B30: 0.5072784162 | C30: R2 846 | D30: 0.2886134233 | E30: 3069.432255 | F30: 0 | G30: 0.2366832722 | H30: 13.58639473 | I30: 0.817702785 | J30: 0 | K30: 36.90252736 | L30: 0.1999160464 | M30: 0.4471197227
A31: 27 | B31: 0.4975641718 | C31: R2 490 | D31: 1.088216552 | E31: 472.2275162 | F31: 0 | G31: 0.1372965432 | H31: 13.72369127 | I31: 0.2168685998 | J31: 0 | K31: 36.90252736 | L31: 0.1959359972 | M31: 0.4426465827
A32: 28 | B32: 0.4971053255 | C32: R2 794 | D32: 0.1058322342 | E32: 3191.105083 | F32: 0 | G32: 0.09023022836 | H32: 13.8139215 | I32: 2.229944418 | J32: 0 | K32: 36.90252736 | L32: 0.1933847144 | M32: 0.4397552892
A33: 29 | B33: 0.4478974536 | C33: R2 284 | D33: 0.5314226218 | E33: 3312.772283 | F33: 0 | G33: 0.4703537466 | H33: 14.28427525 | I33: 0.4440909933 | J33: 0 | K33: 36.90252736 | L33: 0.180858819 | M33: 0.4252749922
A34: 30 | B34: 0.4406989219 | C34: R2 664 | D34: 1.501593909 | E34: 1960.071388 | F34: 0 | G34: 0.7863526834 | H34: 15.07062793 | I34: 0.1571663274 | J34: 0 | K34: 36.90252736 | L34: 0.1624775699 | M34: 0.4030850653
A35: 31 | B35: 0.3603877751 | C35: R2 883 | D35: 1.672631593 | E35: 1394.726038 | F35: 0 | G35: 0.6232785636 | H35: 15.6939065 | I35: 0.1410950271 | J35: 0 | K35: 36.90252736 | L35: 0.1498283474 | M35: 0.3870766687
A36: 32 | B36: 0.3549672402 | C36: R2 521 | D36: 0.7361229612 | E36: 2183.525123 | F36: 2 | G36: 0.4294390602 | H36: 16.12334556 | I36: 0.3205986125 | J36: 3.28239445 | K36: 40.18492181 | L36: 0.1545798223 | M36: 0.3931664054
A37: 33 | B37: 0.324594597 | C37: R2 403 | D37: 1.67297235 | E37: 3565.300756 | F37: 1 | G37: =D37*E37*365*EXP(-0.312)/1000000 -> 1.593594861 | H37: =H36+G37 -> 17.71694042 | I37: =0.236/D37 -> 0.1410662884 | J37: =F37+I37*F37^2 -> 1.141066288 | K37: =K36+J37 -> 41.32598809 | L37: =K37/H37^2 -> 0.1316575585 | M37: 0.3628464668
A38: 34 | B38: 0.3004004631 | C38: R2 720 | D38: 0.1163036418 | E38: 1546.527197 | F38: 0 | G38: 0.04805558425 | H38: 17.764996 | I38: 2.029171197 | J38: 0 | K38: 41.32598809 | L38: 0.1309462356 | M38: =SQRT(L38) -> 0.3618649412
A39: 35 | B39: 0.2702683421 | C39: R2 522 | D39: 1.303244776 | E39: 3004.035775 | F39: 3 | G39: 1.045981683 | H39: 18.81097768 | I39: 0.1810864731 | J39: 4.629778258 | K39: 45.95576635 | L39: 0.1298725226 | M39: 0.3603783049
A40: 36 | B40: 0.2504595402 | C40: R2 560 | D40: 1.570543342 | E40: 995.0920974 | F40: 0 | G40: 0.41754779 | H40: 19.22852547 | I40: 0.1502664675 | J40: 0 | K40: 45.95576635 | L40: 0.1242933945 | M40: 0.3525526833
A41: 37 | B41: 0.2387542646 | C41: R2 110 | D41: 1.756699607 | E41: 70.25947516 | F41: 0 | G41: 0.03297580389 | H41: 19.26150128 | I41: 0.1343428319 | J41: 0 | K41: 45.95576635 | L41: 0.1238681767 | M41: 0.351949111
A42: 38 | B42: 0.2375897172 | C42: R2 389 | D42: 0.04955893284 | E42: 3209.071092 | F42: 0 | G42: 0.04249073764 | H42: 19.30399202 | I42: 4.7620073 | J42: 0 | K42: 45.95576635 | L42: 0.1233234751 | M42: 0.3511744227
A43: 39 | B43: 0.2200609366 | C43: R2 174 | D43: 0.8672819954 | E43: 1588.809251 | F43: 0 | G43: 0.3681502303 | H43: 19.67214225 | I43: 0.2721144925 | J43: 0 | K43: 45.95576635 | L43: 0.1187508428 | M43: 0.3446024417
A44: 40 | B44: 0.1949088628 | C44: R2 945 | D44: 1.084078311 | E44: 2205.066025 | F44: 0 | G44: 0.6386681218 | H44: 20.31081037 | I44: 0.2176964502 | J44: 0 | K44: 45.95576635 | L44: 0.1114000819 | M44: 0.333766508
A45: 41 | B45: 0.1908672262 | C45: R2 492 | D45: 0.7989339313 | E45: 2520.771641 | F45: 1 | G45: 0.5380682383 | H45: 20.84887861 | I45: 0.2953936374 | J45: 1.295393637 | K45: 47.25115999 | L45: 0.1087043875 | M45: 0.3297034842
A46: 42 | B46: 0.1685847662 | C46: R2 237 | D46: 1.271793367 | E46: 3033.94898 | F46: 2 | G46: 1.030903027 | H46: 21.87978163 | I46: 0.1855647357 | J46: 2.742258943 | K46: 49.99341893 | L46: 0.1044303832 | M46: 0.3231569018
A47: 43 | B47: 0.1483320943 | C47: R2 999 | D47: 1.018339085 | E47: 1044.516107 | F47: 1 | G47: 0.2841846002 | H47: 22.16396623 | I47: 0.2317499186 | J47: 1.231749919 | K47: 51.22516885 | L47: 0.1042769786 | M47: 0.3229194614
A48: 44 | B48: 0.1228713198 | C48: R2 826 | D48: 0.07192074544 | E48: 3555.472431 | F48: 0 | G48: 0.06831946891 | H48: 22.2322857 | I48: 3.281389793 | J48: 0 | K48: 51.22516885 | L48: 0.1036370802 | M48: 0.3219271349
A49: 45 | B49: 0.0726588886 | C49: R2 722 | D49: 1.404981912 | E49: 2562.099904 | F49: 0 | G49: 0.9617446505 | H49: 23.19403035 | I49: 0.1679736928 | J49: 0 | K49: 51.22516885 | L49: 0.09522060934 | M49: 0.3085783682
A50: 46 | B50: 0.03068215439 | C50: R2 291 | D50: 0.1264423818 | E50: 3979.553076 | F50: 0 | G50: 0.1344373538 | H50: 23.32846771 | I50: 1.866462785 | J50: 0 | K50: 51.22516885 | L50: 0.09412629646 | M50: 0.306800092
A51: 47 | B51: 0.0244526397 | C51: R2 440 | D51: 1.432888452 | E51: 1176.555698 | F51: 0 | G51: 0.4504202011 | H51: 23.77888791 | I51: 0.1647022835 | J51: 0 | K51: 51.22516885 | L51: 0.09059418437 | M51: 0.3009886781
A52: 48 | B52: 0.01810681977 | C52: R2 204 | D52: 0.8606133696 | E52: 2541.971092 | F52: 0 | G52: 0.5844827282 | H52: 24.36337064 | I52: 0.2742230232 | J52: 0 | K52: 51.22516885 | L52: 0.0862995745 | M52: 0.2937678922
A53: 49 | B53: 0.01541349332 | C53: R2 185 | D53: 1.927956607 | E53: 2218.907948 | F53: 1 | G53: 1.142956039 | H53: 25.50632667 | I53: 0.122409394 | J53: 1.122409394 | K53: 52.34757825 | L53: 0.08046384087 | M53: 0.2836614899
A54: 50 | B54: 0.01074775886 | C54: R2 452 | D54: 0.3959984628 | E54: 3186.184625 | F54: 0 | G54: 0.3370989686 | H54: 25.84342564 | I54: 0.5959619094 | J54: 0 | K54: 52.34757825 | L54: 0.07837840723 | M54: 0.2799614388
A55: Sum | D55: =AVERAGE(D5:D54) -> 0.9364103116 | E55: =AVERAGE(E5:E54) -> 2284.170028 | F55: =SUM(F5:F54) -> 34 | G55: =SUM(G5:G54) -> 25.84342564
A57: Possible Approximation | D57: Nu bar= | E57: =E55*D55*365*EXP(-0.312)/1000000 -> 0.5714623228
D58: k bar= | E58: =0.236/D55 -> 0.2520262721
D59: n= | E59: =D3/(0.061*E57)+D3^2*E58/0.061 -> 0

Sheet Equation 7
A1: For Illustration Purposes - Equation 7 - Made up data for fifty segments of two-lane, two-way rural roads
A2: Data | F2: Computations | J2: First term | K2: Second Term | L2: Results
C3: C= | D3: 1.3 | E3: Observed | G3: Sum Crashes | H3: kj*Crashes2 | I3: Sum | L3: Estimate of | M3: Estimate of
A4: Site j | B4: RND | C4: Site J ID | D4: L | E4: Crashes | F4: kj | G4: 0 | I4: 0 | L4: V{C} | M4: s{C}
A5: 1 | B5: 0.9661738009 | C5: R2 023 | D5: 0.07505908169 | E5: 0 | F5: =0.236/D5 -> 3.144189813 | G5: =G4+E5 -> 0 | H5: =F5*E5^2 -> 0 | I5: =I4+H5 -> 0 | J5: =IF(G5=0,"",($D$3)^2/G5) ->  | K5: =IF(G5=0,"",$D$3^2*I5/(G5)^2) ->  | L5: =IF(J5="","",K5+J5) -> 
A6: 2 | B6: 0.9564281329 | C6: R2 054 | D6: 1.141275369 | E6: 1 | F6: 0.2067862028 | G6: 1 | H6: 0.2067862028 | I6: =I5+H6 -> 0.2067862028 | J6: 1.69 | K6: 0.3494686827 | L6: =IF(J6="","",K6+J6) -> 2.039468683 | M6: =SQRT(L6) -> 1.428099675
A7: 3 | B7: 0.9528627401 | C7: R2 043 | D7: 0.9432010914 | E7: 3 | F7: 0.2502117546 | G7: 4 | H7: 2.251905791 | I7: 2.458691994 | J7: 0.4225 | K7: 0.2596993419 | L7: 0.6821993419 | M7: =SQRT(L7) -> 0.8259535955
A8: 4 | B8: 0.9499273616 | C8: R2 065 | D8: 0.6577821466 | E8: 0 | F8: 0.3587814008 | G8: 4 | H8: 0 | I8: 2.458691994 | J8: 0.4225 | K8: 0.2596993419 | L8: 0.6821993419 | M8: 0.8259535955
A9: 5 | B9: 0.9098392698 | C9: R2 032 | D9: 1.129150703 | E9: 0 | F9: 0.2090066448 | G9: 4 | H9: 0 | I9: 2.458691994 | J9: 0.4225 | K9: 0.2596993419 | L9: 0.6821993419 | M9: 0.8259535955
A10: 6 | B10: 0.8983399913 | C10: R2 076 | D10: 0.9886167122 | E10: 1 | F10: 0.2387173887 | G10: 5 | H10: 0.2387173887 | I10: 2.697409383 | J10: 0.338 | K10: 0.1823448743 | L10: 0.5203448743 | M10: 0.7213493427
A11: 7 | B11: 0.8876840997 | C11: R2 134 | D11: 1.325824749 | E11: 5 | F11: 0.1780024096 | G11: 10 | H11: 4.450060241 | I11: 7.147469623 | J11: 0.169 | K11: 0.1207922366 | L11: 0.2897922366 | M11: 0.5383235427
A12: 8 | B12: 0.8423581116 | C12: R2 765 | D12: 0.7782336713 | E12: 2 | F12: 0.3032508213 | G12: 12 | H12: 1.213003285 | I12: 8.360472909 | J12: 0.1408333333 | K12: 0.098119439 | L12: 0.2389527723 | M12: 0.4888279578
A13: 9 | B13: 0.8374991088 | C13: R2 333 | D13: 0.7370658822 | E13: 0 | F13: 0.3201884739 | G13: 12 | H13: 0 | I13: 8.360472909 | J13: 0.1408333333 | K13: 0.098119439 | L13: 0.2389527723 | M13: 0.4888279578
A14: 10 | B14: 0.8087551224 | C14: R2 099 | D14: 1.400072635 | E14: 2 | F14: 0.1685626832 | G14: 14 | H14: 0.6742507327 | I14: 9.034723641 | J14: 0.1207142857 | K14: 0.07790144364 | L14: 0.1986157294 | M14: 0.4456632466
A15: 11 | B15: 0.7819151985 | C15: R2 022 | D15: 0.3950371003 | E15: 0 | F15: 0.5974122427 | G15: 14 | H15: 0 | I15: 9.034723641 | J15: 0.1207142857 | K15: 0.07790144364 | L15: 0.1986157294 | M15: 0.4456632466
A16: 12 | B16: 0.7733336466 | C16: R2 098 | D16: 0.8702205872 | E16: 0 | F16: 0.2711956066 | G16: 14 | H16: 0 | I16: 9.034723641 | J16: 0.1207142857 | K16: 0.07790144364 | L16: 0.1986157294 | M16: 0.4456632466
A17: 13 | B17: 0.7598416408 | C17: R2 234 | D17: 0.4824369964 | E17: 1 | F17: 0.4891830473 | G17: 15 | H17: 0.4891830473 | I17: 9.523906689 | J17: 0.1126666667 | K17: 0.07153512135 | L17: 0.184201788 | M17: 0.4291873577
A18: 14 | B18: 0.7259350296 | C18: R2 123 | D18: 0.9305821106 | E18: 1 | F18: 0.2536047032 | G18: 16 | H18: 0.2536047032 | I18: 9.777511392 | J18: 0.105625 | K18: 0.06454685255 | L18: 0.1701718525 | M18: 0.4125189117
A19: 15 | B19: 0.7244192313 | C19: R2 555 | D19: 1.782446126 | E19: 0 | F19: 0.1324023186 | G19: 16 | H19: 0 | I19: 9.777511392 | J19: 0.105625 | K19: 0.06454685255 | L19: 0.1701718525 | M19: 0.4125189117
A20: 16 | B20: 0.717699695 | C20: R2 443 | D20: 0.8572466048 | E20: 0 | F20: 0.2753000113 | G20: 16 | H20: 0 | I20: 9.777511392 | J20: 0.105625 | K20: 0.06454685255 | L20: 0.1701718525 | M20: 0.4125189117
A21: 17 | B21: 0.6842001535 | C21: R2 767 | D21: 1.196392436 | E21: 0 | F21: 0.1972596891 | G21: 16 | H21: 0 | I21: 9.777511392 | J21: 0.105625 | K21: 0.06454685255 | L21: 0.1701718525 | M21: 0.4125189117
A22: 18 | B22: 0.6466492794 | C22: R2 236 | D22: 1.134502844 | E22: 1 | F22: 0.2080206331 | G22: 17 | H22: 0.2080206331 | I22: 9.985532025 | J22: 0.09941176471 | K22: 0.05839290354 | L22: 0.1578046682 | M22: 0.3972463571
A23: 19 | B23: 0.6364614422 | C23: R2 763 | D23: 0.3109506077 | E23: 0 | F23: 0.7589629806 | G23: 17 | H23: 0 | I23: 9.985532025 | J23: 0.09941176471 | K23: 0.05839290354 | L23: 0.1578046682 | M23: 0.3972463571
A24: 20 | B24: 0.5696542251 | C24: R2 584 | D24: 1.440185258 | E24: 0 | F24: 0.163867807 | G24: 17 | H24: 0 | I24: 9.985532025 | J24: 0.09941176471 | K24: 0.05839290354 | L24: 0.1578046682 | M24: 0.3972463571
A25: 21 | B25: 0.5646764423 | C25: R2 942 | D25: 0.3930890131 | E25: 0 | F25: 0.6003729236 | G25: 17 | H25: 0 | I25: 9.985532025 | J25: 0.09941176471 | K25: 0.05839290354 | L25: 0.1578046682 | M25: 0.3972463571
A26: 22 | B26: 0.5640781757 | C26: R2 583 | D26: 1.619451942 | E26: 5 | F26: 0.1457283133 | G26: 22 | H26: 3.643207833 | I26: 13.62873986 | J26: 0.07681818182 | K26: 0.04758795529 | L26: 0.1244061371 | M26: 0.3527125417
A27: 23 | B27: 0.5377167779 | C27: R2 947 | D27: 0.1530799909 | E27: 0 | F27: 1.541677646 | G27: 22 | H27: 0 | I27: 13.62873986 | J27: 0.07681818182 | K27: 0.04758795529 | L27: 0.1244061371 | M27: 0.3527125417
A28: 24 | B28: 0.5281326547 | C28: R2 396 | D28: 1.561644976 | E28: 0 | F28: 0.1511226967 | G28: 22 | H28: 0 | I28: 13.62873986 | J28: 0.07681818182 | K28: 0.04758795529 | L28: 0.1244061371 | M28: 0.3527125417
A29: 25 | B29: 0.5137115675 | C29: R2 483 | D29: 0.8619823797 | E29: 1 | F29: 0.2737874991 | G29: 23 | H29: 0.2737874991 | I29: 13.90252736 | J29: 0.07347826087 | K29: 0.04441450138 | L29: 0.1178927623 | M29: 0.3433551547
A30: 26 | B30: 0.5072784162 | C30: R2 846 | D30: 0.2886134233 | E30: 0 | F30: 0.817702785 | G30: 23 | H30: 0 | I30: 13.90252736 | J30: 0.07347826087 | K30: 0.04441450138 | L30: 0.1178927623 | M30: 0.3433551547
A31: 27 | B31: 0.4975641718 | C31: R2 490 | D31: 1.088216552 | E31: 0 | F31: 0.2168685998 | G31: 23 | H31: 0 | I31: 13.90252736 | J31: 0.07347826087 | K31: 0.04441450138 | L31: 0.1178927623 | M31: 0.3433551547
A32: 28 | B32: 0.4971053255 | C32: R2 794 | D32: 0.1058322342 | E32: 0 | F32: 2.229944418 | G32: 23 | H32: 0 | I32: 13.90252736 | J32: 0.07347826087 | K32: 0.04441450138 | L32: 0.1178927623 | M32: 0.3433551547
A33: 29 | B33: 0.4478974536 | C33: R2 284 | D33: 0.5314226218 | E33: 0 | F33: 0.4440909933 | G33: 23 | H33: 0 | I33: 13.90252736 | J33: 0.07347826087 | K33: 0.04441450138 | L33: 0.1178927623 | M33: 0.3433551547
A34: 30 | B34: 0.4406989219 | C34: R2 664 | D34: 1.501593909 | E34: 0 | F34: 0.1571663274 | G34: 23 | H34: 0 | I34: 13.90252736 | J34: 0.07347826087 | K34: 0.04441450138 | L34: 0.1178927623 | M34: 0.3433551547
A35: 31 | B35: 0.3603877751 | C35: R2 883 | D35: 1.672631593 | E35: 0 | F35: 0.1410950271 | G35: 23 | H35: 0 | I35: 13.90252736 | J35: 0.07347826087 | K35: 0.04441450138 | L35: 0.1178927623 | M35: 0.3433551547
A36: 32 | B36: 0.3549672402 | C36: R2 521 | D36: 0.7361229612 | E36: 2 | F36: 0.3205986125 | G36: 25 | H36: 1.28239445 | I36: 15.18492181 | J36: 0.0676 | K36: 0.04106002856 | L36: 0.1086600286 | M36: 0.3296362064
A37: 33 | B37: 0.324594597 | C37: R2 403 | D37: 1.67297235 | E37: 1 | F37: =0.236/D37 -> 0.1410662884 | G37: =G36+E37 -> 26 | H37: =F37*E37^2 -> 0.1410662884 | I37: 15.32598809 | J37: =IF(G37=0,"",($D$3)^2/G37) -> 0.065 | K37: =IF(G37=0,"",$D$3^2*I37/(G37)^2) -> 0.03831497024 | L37: 0.1033149702 | M37: 0.3214264616
A38: 34 | B38: 0.3004004631 | C38: R2 720 | D38: 0.1163036418 | E38: 0 | F38: 2.029171197 | G38: 26 | H38: 0 | I38: 15.32598809 | J38: 0.065 | K38: 0.03831497024 | L38: 0.1033149702 | M38: 0.3214264616
A39: 35 | B39: 0.2702683421 | C39: R2 522 | D39: 1.303244776 | E39: 3 | F39: 0.1810864731 | G39: 29 | H39: 1.629778258 | I39: 16.95576635 | J39: 0.05827586207 | K39: 0.03407282418 | L39: 0.09234868625 | M39: 0.3038892664
A40: 36 | B40: 0.2504595402 | C40: R2 560 | D40: 1.570543342 | E40: 0 | F40: 0.1502664675 | G40: 29 | H40: 0 | I40: 16.95576635 | J40: 0.05827586207 | K40: 0.03407282418 | L40: 0.09234868625 | M40: 0.3038892664
A41: 37 | B41: 0.2387542646 | C41: R2 110 | D41: 1.756699607 | E41: 0 | F41: 0.1343428319 | G41: 29 | H41: 0 | I41: 16.95576635 | J41: 0.05827586207 | K41: 0.03407282418 | L41: 0.09234868625 | M41: 0.3038892664
A42: 38 | B42: 0.2375897172 | C42: R2 389 | D42: 0.04955893284 | E42: 0 | F42: 4.7620073 | G42: 29 | H42: 0 | I42: 16.95576635 | J42: 0.05827586207 | K42: 0.03407282418 | L42: 0.09234868625 | M42: 0.3038892664
A43: 39 | B43: 0.2200609366 | C43: R2 174 | D43: 0.8672819954 | E43: 0 | F43: 0.2721144925 | G43: 29 | H43: 0 | I43: 16.95576635 | J43: 0.05827586207 | K43: 0.03407282418 | L43: 0.09234868625 | M43: 0.3038892664
A44: 40 | B44: 0.1949088628 | C44: R2 945 | D44: 1.084078311 | E44: 0 | F44: 0.2176964502 | G44: 29 | H44: 0 | I44: 16.95576635 | J44: 0.05827586207 | K44: 0.03407282418 | L44: 0.09234868625 | M44: 0.3038892664
A45: 41 | B45: 0.1908672262 | C45: R2 492 | D45: 0.7989339313 | E45: 1 | F45: 0.2953936374 | G45: 30 | H45: 0.2953936374 | I45: 17.25115999 | J45: 0.05633333333 | K45: 0.03239384487 | L45: 0.0887271782 | M45: 0.2978710765
A46: 42 | B46: 0.1685847662 | C46: R2 237 | D46: 1.271793367 | E46: 2 | F46: 0.1855647357 | G46: 32 | H46: 0.742258943 | I46: 17.99341893 | J46: 0.0528125 | K46: 0.02969616992 | L46: 0.08250866992 | M46: 0.2872432243
A47: 43 | B47: 0.1483320943 | C47: R2 999 | D47: 1.018339085 | E47: 1 | F47: 0.2317499186 | G47: 33 | H47: 0.2317499186 | I47: 18.22516885 | J47: 0.05121212121 | K47: 0.02828331989 | L47: 0.0794954411 | M47: 0.2819493591
A48: 44 | B48: 0.1228713198 | C48: R2 826 | D48: 0.07192074544 | E48: 0 | F48: 3.281389793 | G48: 33 | H48: 0 | I48: 18.22516885 | J48: 0.05121212121 | K48: 0.02828331989 | L48: 0.0794954411 | M48: 0.2819493591
A49: 45 | B49: 0.0726588886 | C49: R2 722 | D49: 1.404981912 | E49: 0 | F49: 0.1679736928 | G49: 33 | H49: 0 | I49: 18.22516885 | J49: 0.05121212121 | K49: 0.02828331989 | L49: 0.0794954411 | M49: 0.2819493591
A50: 46 | B50: 0.03068215439 | C50: R2 291 | D50: 0.1264423818 | E50: 0 | F50: 1.866462785 | G50: 33 | H50: 0 | I50: 18.22516885 | J50: 0.05121212121 | K50: 0.02828331989 | L50: 0.0794954411 | M50: 0.2819493591
A51: 47 | B51: 0.0244526397 | C51: R2 440 | D51: 1.432888452 | E51: 0 | F51: 0.1647022835 | G51: 33 | H51: 0 | I51: 18.22516885 | J51: 0.05121212121 | K51: 0.02828331989 | L51: 0.0794954411 | M51: 0.2819493591
A52: 48 | B52: 0.01810681977 | C52: R2 204 | D52: 0.8606133696 | E52: 0 | F52: 0.2742230232 | G52: 33 | H52: 0 | I52: 18.22516885 | J52: 0.05121212121 | K52: 0.02828331989 | L52: 0.0794954411 | M52: 0.2819493591
A53: 49 | B53: 0.01541349332 | C53: R2 185 | D53: 1.927956607 | E53: 1 | F53: 0.122409394 | G53: 34 | H53: 0.122409394 | I53: 18.34757825 | J53: 0.04970588235 | K53: 0.02682301664 | L53: 0.07652889899 | M53: 0.276638571
A54: 50 | B54: 0.01074775886 | C54: R2 452 | D54: 0.3959984628 | E54: 0 | F54: 0.5959619094 | G54: 34 | H54: 0 | I54: 18.34757825 | J54: 0.04970588235 | K54: 0.02682301664 | L54: 0.07652889899 | M54: 0.276638571
A55: Sum | D55: =SUM(D5:D54) -> 46.82051558 | E55: =SUM(E5:E54) -> 34

Sheet Equation 8
A1: For Illustration Purposes - Equation 8 - Made up data for fifty segments of two-lane, two-way rural roads
A2: Data | F2: Computations | K2: First term | L2: Second Term | M2: Results
C3: C= | D3: 1.3 | H3: Cum Nu | I3: kj*Nu2 | J3: Cum kj*Nu2 | M3: Estimate of | N3: Estimate of
A4: Site j | B4: RND | C4: Site J ID | D4: L | E4: AADT | F4: Nu | G4: kj | H4: 0 | J4: 0 | M4: V{C} | N4: s{C}
A5: 1 | B5: 0.9661738009 | C5: R2 023 | D5: 0.07505908169 | E5: 3715.311843 | F5: =D5*E5*365*EXP(-0.312)/1000000 -> 0.07450604405 | G5: =0.236/D5 -> 3.144189813 | H5: =H4+F5 -> 0.07450604405 | I5: =G5*F5^2 -> 0.01745387116 | J5: =J4+I5 -> 0.01745387116 | K5: =IF(H5=0,"",$D$3/H5) -> 17.44824889 | L5: =IF(H5=0,"",$D$3^2*J5/(H5)^2) -> 5.313680783 | M5: =IF(K5="","",L5+K5) -> 22.76192967 | N5: =SQRT(M5) -> 4.770946412
A6: 2 | B6: 0.9564281329 | C6: R2 054 | D6: 1.141275369 | E6: 219.7623684 | F6: =D6*E6*365*EXP(-0.312)/1000000 -> 0.06700955867 | G6: =0.236/D6 -> 0.2067862028 | H6: =H5+F6 -> 0.1415156027 | I6: =G6*F6^2 -> 0.0009285281477 | J6: =J5+I6 -> 0.01838239931 | K6: =IF(H6=0,"",$D$3/H6) -> 9.186266214 | L6: =IF(H6=0,"",$D$3^2*J6/(H6)^2) -> 1.551244482 | M6: =IF(K6="","",L6+K6) -> 10.7375107 | N6: =SQRT(M6) -> 3.276814108
A7: 3 | B7: 0.9528627401 | C7: R2 043 | D7: 0.9432010914 | E7: 2133.118167 | F7: 0.5375417431 | G7: 0.2502117546 | H7: 0.6790573458 | I7: 0.07229896811 | J7: 0.09068136742 | K7: 1.91441858 | L7: 0.3323470757 | M7: 2.246765656 | N7: =SQRT(M7) -> 1.498921498
A8: 4 | B8: 0.9499273616 | C8: R2 065 | D8: 0.6577821466 | E8: 2568.541345 | F8: 0.4514000768 | G8: 0.3587814008 | H8: 1.130457423 | I8: 0.07310602633 | J8: 0.1637873938 | K8: 1.149976969 | L8: 0.2166001521 | M8: 1.366577121 | N8: 1.169006895
A9: 5 | B9: 0.9098392698 | C9: R2 032 | D9: 1.129150703 | E9: 1450.877272 | F9: 0.4376990187 | G9: 0.2090066448 | H9: 1.568156441 | I9: 0.04004158309 | J9: 0.2038289768 | K9: 0.8289989224 | L9: 0.1400792657 | M9: 0.9690781881 | N9: 0.9844176899
A10: 6 | B10: 0.8983399913 | C10: R2 076 | D10: 0.9886167122 | E10: 2867.263129 | F10: 0.757335795 | G10: 0.2387173887 | H10: 2.325492236 | I10: 0.1369181502 | J10: 0.3407471271 | K10: 0.559021432 | L10: 0.1064851678 | M10: 0.6655065998 | N10: 0.8157858786
A11: 7 | B11: 0.8876840997 | C11: R2 134 | D11: 1.325824749 | E11: 2167.253082 | F11: 0.7676950438 | G11: 0.1780024096 | H11: 3.09318728 | I11: 0.1049067312 | J11: 0.4456538583 | K11: 0.4202784643 | L11: 0.07871761807 | M11: 0.4989960824 | N11: 0.7063965476
A12: 8 | B12: 0.8423581116 | C12: R2 765 | D12: 0.7782336713 | E12: 2638.738002 | F12: 0.5486549162 | G12: 0.3032508213 | H12: 3.641842196 | I12: 0.09128523455 | J12: 0.5369390928 | K12: 0.3569621993 | L12: 0.0684178594 | M12: 0.4253800587 | N12: 0.6522116671
A13: 9 | B13: 0.8374991088 | C13: R2 333 | D13: 0.7370658822 | E13: 3482.207379 | F13: 0.685731226 | G13: 0.3201884739 | H13: 4.327573422 | I13: 0.1505613662 | J13: 0.687500459 | K13: 0.3003992938 | L13: 0.06203985973 | M13: 0.3624391535 | N13: 0.6020291966
A14: 10 | B14: 0.8087551224 | C14: R2 099 | D14: 1.400072635 | E14: 1816.06828 | F14: 0.6793220732 | G14: 0.1685626832 | H14: 5.006895495 | I14: 0.07778805066 | J14: 0.7652885097 | K14: 0.2596419281 | L14: 0.05159110663 | M14: 0.3112330347 | N14: 0.5578826352
A15: 11 | B15: 0.7819151985 | C15: R2 022 | D15: 0.3950371003 | E15: 872.4261429 | F15: 0.09207877691 | G15: 0.5974122427 | H15: 5.098974272 | I15: 0.00506516039 | J15: 0.7703536701 | K15: 0.2549532378 | L15: 0.05007387711 | M15: 0.3050271149 | N15: 0.552292599
A16: 12 | B16: 0.7733336466 | C16: R2 098 | D16: 0.8702205872 | E16: 833.964186 | F16: 0.1938963974 | G16: 0.2711956066 | H16: 5.29287067 | I16: 0.01019581929 | J16: 0.7805494893 | K16: 0.2456134074 | L16: 0.04708738625 | M16: 0.2927007936 | N16: 0.5410182932
A17: 13 | B17: 0.7598416408 | C17: R2 234 | D17: 0.4824369964 | E17: 3645.62608 | F17: 0.4699002904 | G17: 0.4891830473 | H17: 5.76277096 | I17: 0.1080146903 | J17: 0.8885641797 | K17: 0.2255859219 | L17: 0.04521814981 | M17: 0.2708040718 | N17: 0.5203883855
A18: 14 | B18: 0.7259350296 | C18: R2 123 | D18: 0.9305821106 | E18: 1239.350358 | F18: 0.3081355329 | G18: 0.2536047032 | H18: 6.070906493 | I18: 0.02407913425 | J18: 0.9126433139 | K18: 0.2141360605 | L18: 0.04184857687 | M18: 0.2559846374 | N18: 0.5059492438
A19: 15 | B19: 0.7244192313 | C19: R2 555 | D19: 1.782446126 | E19: 1440.868742 | F19: 0.6861733054 | G19: 0.1324023186 | H19: 6.757079799 | I19: 0.06233948749 | J19: 0.9749828014 | K19: 0.1923908018 | L19: 0.0360882285 | M19: 0.2284790303 | N19: 0.4779948015
A20: 16 | B20: 0.717699695 | C20: R2 443 | D20: 0.8572466048 | E20: 521.5175889 | F20: 0.1194449299 | G20: 0.2753000113 | H20: 6.876524728 | I20: 0.003927730392 | J20: 0.9789105318 | K20: 0.1890489821 | L20: 0.0349857902 | M20: 0.2240347723 | N20: 0.4733231161
A21: 17 | B21: 0.6842001535 | C21: R2 767 | D21: 1.196392436 | E21: 943.0677363 | F21: 0.3014460047 | G21: 0.1972596891 | H21: 7.177970733 | I21: 0.01792492753 | J21: 0.9968354593 | K21: 0.1811096824 | L21: 0.03269691787 | M21: 0.2138066003 | N21: 0.462392258
A22: 18 | B22: 0.6466492794 | C22: R2 236 | D22: 1.134502844 | E22: 3647.359549 | F22: 1.105546852 | G22: 0.2080206331 | H22: 8.283517585 | I22: 0.2542498578 | J22: 1.251085317 | K22: 0.156938159 | L22: 0.0308137131 | M22: 0.1877518721 | N22: 0.4333034412
A23: 19 | B23: 0.6364614422 | C23: R2 763 | D23: 0.3109506077 | E23: 2842.635247 | F23: 0.236159561 | G23: 0.7589629806 | H23: 8.519677146 | I23: 0.04232838109 | J23: 1.293413698 | K23: 0.1525879417 | L23: 0.03011465456 | M23: 0.1827025963 | N23: 0.4274372425
A24: 20 | B24: 0.5696542251 | C24: R2 584 | D24: 1.440185258 | E24: 3283.007445 | F24: 1.26323228 | G24: 0.163867807 | H24: 9.782909426 | I24: 0.2614930024 | J24: 1.554906701 | K24: 0.1328848038 | L24: 0.02745711953 | M24: 0.1603419234 | N24: 0.4004271761
A25: 21 | B25: 0.5646764423 | C25: R2 942 | D25: 0.3930890131 | E25: 3817.131143 | F25: 0.4008860763 | G25: 0.6003729236 | H25: 10.1837955 | I25: 0.09648572014 | J25: 1.651392421 | K25: 0.1276537809 | L25: 0.02691024502 | M25: 0.1545640259 | N25: 0.3931463162
A26: 22 | B26: 0.5640781757 | C26: R2 583 | D26: 1.619451942 | E26: 3657.036417 | F26: 1.582305494 | G26: 0.1457283133 | H26: 11.766101 | I26: 0.3648586191 | J26: 2.01625104 | K26: 0.1104868979 | L26: 0.02461309144 | M26: 0.1350999894 | N26: 0.3675595046
A27: 23 | B27: 0.5377167779 | C27: R2 947 | D27: 0.1530799909 | E27: 1630.927054 | F27: 0.06670308967 | G27: 1.541677646 | H27: 11.83280409 | I27: 0.006859389696 | J27: 2.02311043 | K27: 0.1098640686 | L27: 0.02441917265 | M27: 0.1342832413 | N27: 0.3664467782
A28: 24 | B28: 0.5281326547 | C28: R2 396 | D28: 1.561644976 | E28: 1725.112811 | F28: 0.719768431 | G28: 0.1511226967 | H28: 12.55257252 | I28: 0.0782916208 | J28: 2.10140205 | K28: 0.1035644286 | L28: 0.02253877864 | M28: 0.1261032072 | N28: 0.3551101339
A29: 25 | B29: 0.5137115675 | C29: R2 483 | D29: 0.8619823797 | E29: 3461.327166 | F29: 0.7971389409 | G29: 0.2737874991 | H29: 13.34971146 | I29: 0.173972925 | J29: 2.275374975 | K29: 0.0973803819 | L29: 0.02157724159 | M29: 0.1189576235 | N29: 0.3449023391
A30: 26 | B30: 0.5072784162 | C30: R2 846 | D30: 0.2886134233 | E30: 3069.432255 | F30: 0.2366832722 | G30: 0.817702785 | H30: 13.58639473 | I30: 0.04580686886 | J30: 2.321181844 | K30: 0.09568395633 | L30: 0.02125139352 | M30: 0.1169353498 | N30: 0.3419581112
A31: 27 | B31: 0.4975641718 | C31: R2 490 | D31: 1.088216552 | E31: 472.2275162 | F31: 0.1372965432 | G31: 0.2168685998 | H31: 13.72369127 | I31: 0.004088047011 | J31: 2.325269891 | K31: 0.09472670101 | L31: 0.0208649906 | M31: 0.1155916916 | N31: 0.3399877816
A32: 28 | B32: 0.4971053255 | C32: R2 794 | D32: 0.1058322342 | E32: 3191.105083 | F32: 0.09023022836 | G32: 2.229944418 | H32: 13.8139215 | I32: 0.01815507935 | J32: 2.343424971 | K32: 0.09410796202 | L32: 0.02075409452 | M32: 0.1148620565 | N32: 0.3389130516
A33: 29 | B33: 0.4478974536 | C33: R2 284 | D33: 0.5314226218 | E33: 3312.772283 | F33: 0.4703537466 | G33: 0.4440909933 | H33: 14.28427525 | I33: 0.09824742593 | J33: 2.441672397 | K33: 0.09100916759 | L33: 0.02022356326 | M33: 0.1112327308 | N33: 0.333515713
A34: 30 | B34: 0.4406989219 | C34: R2 664 | D34: 1.501593909 | E34: 1960.071388 | F34: 0.7863526834 | G34: 0.1571663274 | H34: 15.07062793 | I34: 0.09718388387 | J34: 2.53885628 | K34: 0.08626050659 | L34: 0.01889131222 | M34: 0.1051518188 | N34: 0.3242712118
A35: 31 | B35: 0.3603877751 | C35: R2 883 | D35: 1.672631593 | E35: 1394.726038 | F35: 0.6232785636 | G35: 0.1410950271 | H35: 15.6939065 | I35: 0.05481205543 | J35: 2.593668336 | K35: 0.08283469768 | L35: 0.0177966813 | M35: 0.100631379 | N35: 0.317224493
A36: 32 | B36: 0.3549672402 | C36: R2 521 | D36: 0.7361229612 | E36: 2183.525123 | F36: 0.4294390602 | G36: 0.3205986125 | H36: 16.12334556 | I36: 0.05912412492 | J36: 2.652792461 | K36: 0.08062842761 | L36: 0.01724565348 | M36: 0.09787408109 | N36: 0.3128483356
A37: 33 | B37: 0.324594597 | C37: R2 403 | D37: 1.67297235 | E37: 3565.300756 | F37: 1.593594861 | G37: 0.1410662884 | H37: 17.71694042 | I37: 0.3582441284 | J37: 3.011036589 | K37: 0.07337610047 | L37: 0.01621157793 | M37: 0.0895876784 | N37: 0.2993120084
A38: 34 | B38: 0.3004004631 | C38: R2 720 | D38: 0.1163036418 | E38: 1546.527197 | F38: 0.04805558425 | G38: 2.029171197 | H38: 17.764996 | I38: 0.004686044545 | J38: 3.015722634 | K38: 0.07317761287 | L38: 0.0161490832 | M38: 0.08932669607 | N38: 0.2988757201
A39: 35 | B39: 0.2702683421 | C39: R2 522 | D39: 1.303244776 | E39: 3004.035775 | F39: 1.045981683 | G39: 0.1810864731 | H39: 18.81097768 | I39: 0.1981226684 | J39: 3.213845302 | K39: 0.06910858233 | L39: 0.0153493128 | M39: 0.08445789513 | N39: 0.2906164055
A40: 36 | B40: 0.2504595402 | C40: R2 560 | D40: 1.570543342 | E40: 995.0920974 | F40: 0.41754779 | G40: 0.1502664675 | H40: 19.22852547 | I40: 0.02619838112 | J40: 3.240043683 | K40: 0.06760788818 | L40: 0.01480967767 | M40: 0.08241756584 | N40: 0.287084597
A41: 37 | B41: 0.2387542646 | C41: R2 110 | D41: 1.756699607 | E41: 70.25947516 | F41: 0.03297580389 | G41: 0.1343428319 | H41: 19.26150128 | I41: 0.0001460848846 | J41: 3.240189768 | K41: 0.06749214307 | L41: 0.01475967801 | M41: 0.08225182108 | N41: 0.2867957829
A42: 38 | B42: 0.2375897172 | C42: R2 389 | D42: 0.04955893284 | E42: 3209.071092 | F42: 0.04249073764 | G42: 4.7620073 | H42: 19.30399202 | I42: 0.008597626963 | J42: 3.248787395 | K42: 0.0673435836 | L42: 0.01473376496 | M42: 0.08207734856 | N42: 0.2864914459
A43: 39 | B43: 0.2200609366 | C43: R2 174 | D43: 0.8672819954 | E43: 1588.809251 | F43: 0.3681502303 | G43: 0.2721144925 | H43: 19.67214225 | I43: 0.03688092673 | J43: 3.285668322 | K43: 0.06608329605 | L43: 0.01434852019 | M43: 0.08043181624 | N43: 0.2836050356
A44: 40 | B44: 0.1949088628 | C44: R2 945 | D44: 1.084078311 | E44: 2205.066025 | F44: 0.6386681218 | G44: 0.2176964502 | H44: 20.31081037 | I44: 0.08879772236 | J44: 3.374466044 | K44: 0.06400532409 | L44: 0.01382411265 | M44: 0.07782943674 | N44: 0.2789792765
A45: 41 | B45: 0.1908672262 | C45: R2 492 | D45: 0.7989339313 | E45: 2520.771641 | F45: 0.5380682383 | G45: 0.2953936374 | H45: 20.84887861 | I45: 0.08552160645 | J45: 3.459987651 | K45: 0.06235347352 | L45: 0.01345227857 | M45: 0.07580575209 | N45: 0.275328444
A46: 42 | B46: 0.1685847662 | C46: R2 237 | D46: 1.271793367 | E46: 3033.94898 | F46: 1.030903027 | G46: 0.1855647357 | H46: 21.87978163 | I46: 0.1972109736 | J46: 3.657198624 | K46: 0.05941558384 | L46: 0.01291068502 | M46: 0.07232626886 | N46: 0.2689354362
A47: 43 | B47: 0.1483320943 | C47: R2 999 | D47: 1.018339085 | E47: 1044.516107 | F47: 0.2841846002 | G47: 0.2317499186 | H47: 22.16396623 | I47: 0.01871632899 | J47: 3.675914953 | K47: 0.05865376198 | L47: 0.01264611713 | M47: 0.07129987911 | N47: 0.2670203721
A48: 44 | B48: 0.1228713198 | C48: R2 826 | D48: 0.07192074544 | E48: 3555.472431 | F48: 0.06831946891 | G48: 3.281389793 | H48: 22.2322857 | I48: 0.01531605038 | J48: 3.691231004 | K48: 0.05847351988 | L48: 0.01262088181 | M48: 0.0710944017 | N48: 0.2666353347
A49: 45 | B49: 0.0726588886 | C49: R2 722 | D49: 1.404981912 | E49: 2562.099904 | F49: 0.9617446505 | G49: 0.1679736928 | H49: 23.19403035 | I49: 0.1553677329 | J49: 3.846598736 | K49: 0.05604890484 | L49: 0.01208401197 | M49: 0.06813291681 | N49: 0.2610228281
A50: 46 | B50: 0.03068215439 | C50: R2 291 | D50: 0.1264423818 | E50: 3979.553076 | F50: 0.1344373538 | G50: 1.866462785 | H50: 23.32846771 | I50: 0.03373333241 | J50: 3.880332069 | K50: 0.05572590606 | L50: 0.01204989243 | M50: 0.0677757985 | N50: 0.2603378545
A51: 47 | B51: 0.0244526397 | C51: R2 440 | D51: 1.432888452 | E51: 1176.555698 | F51: 0.4504202011 | G51: 0.1647022835 | H51: 23.77888791 | I51: 0.03341452876 | J51: 3.913746598 | K51: 0.05467034476 | L51: 0.0116975882 | M51: 0.06636793296 | N51: 0.2576197449
A52: 48 | B52: 0.01810681977 | C52: R2 204 | D52: 0.8606133696 | E52: 2541.971092 | F52: 0.5844827282 | G52: 0.2742230232 | H52: 24.36337064 | I52: 0.09368008551 | J52: 4.007426683 | K52: 0.05335879093 | L52: 0.01140978724 | M52: 0.06476857816 | N52: 0.2544967154
A53: 49 | B53: 0.01541349332 | C53: R2 185 | D53: 1.927956607 | E53: 2218.907948 | F53: 1.142956039 | G53: 0.122409394 | H53: 25.50632667 | I53: 0.1599093293 | J53: 4.167336012 | K53: 0.05096774681 | L53: 0.0108255355 | M53: 0.0617932823 | N53: 0.2485825463
A54: 50 | B54: 0.01074775886 | C54: R2 452 | D54: 0.3959984628 | E54: 3186.184625 | F54: 0.3370989686 | G54: 0.5959619094 | H54: 25.84342564 | I54: 0.06772255747 | J54: 4.23505857 | K54: 0.0503029288 | L54: 0.01071632718 | M54: 0.06101925597 | N54: 0.2470207602
A55: Sum | D55: =AVERAGE(D5:D54) -> 0.9364103116 | E55: =AVERAGE(E5:E54) -> 2284.170028 | F55: =SUM(F5:F54) -> 25.84342564
D57: Nu bar= | E57: =E55*D55*365*EXP(-0.312)/1000000 -> 0.5714623228
D58: k bar= | E58: =0.236/D55 -> 0.2520262721
D59: n= | E59: =D3/(M54*E57)+D3^2*E58/M54 -> 44.26127445

Sheet Accuracy of C
A1: For Illustration Purposes -Coeficient of Variation - Made up data for fifty segments of two-lane, two-way rural roads
A2: Data | F2: Computations | O2: Results
A3: C= | B3: 1.3 | G3: Na | I3: Sum Na | J3: (Sum Na)2 | K3: kj*Na2 | L3: Sum kj*Na2 | M3: First term | N3: Second Term | O3: Estimate of | P3: Estimate of | Q3: Estimate of
A4: Site ID | B4: RND | C4: Site J ID | D4: L | E4: AADT | F4: Nu | G4: Crashes | H4: kj | I4: 0 | L4: 0 | O4: V{C} | P4: s{C} | Q4: s{C}/C | R4: Site j
A5: 1 | B5: 0.9661738009 | C5: R2 023 | D5: 0.07505908169 | E5: 3715.311843 | F5: =D5*E5*365*EXP(-0.312)/1000000 -> 0.07450604405 | G5: 0 | H5: =0.236/D5 -> 3.144189813 | I5: =I4+G5 -> 0 | J5: =I5^2 -> 0 | K5: =H5*G5^2 -> 0 | L5: =L4+K5 -> 0 | M5: =IF(I5=0,"",$B$3/I5) ->  | N5: =IF(I5=0,"",$B$3^2*L5/(I5)^2) ->  | O5: =IF(M5="","",N5+M5) ->  | Q5: =IF(P5="","",P5/$B$3) ->  | R5: 1
A6: 2 | B6: 0.9564281329 | C6: R2 054 | D6: 1.141275369 | E6: 219.7623684 | F6: 0.06700955867 | G6: 1 | H6: 0.2067862028 | I6: 1 | J6: 1 | K6: 0.2067862028 | L6: 0.2067862028 | M6: =IF(I6=0,"",$B$3^2/I6) -> 1.69 | N6: 0.3494686827 | O6: 2.039468683 | P6: =SQRT(O6) -> 1.428099675 | Q6: =P6/$B$3 -> 1.098538212 | R6: 2
A7: 3 | B7: 0.9528627401 | C7: R2 043 | D7: 0.9432010914 | E7: 2133.118167 | F7: 0.5375417431 | G7: 3 | H7: 0.2502117546 | I7: 4 | J7: 16 | K7: 2.251905791 | L7: 2.458691994 | M7: 0.4225 | N7: 0.2596993419 | O7: 0.6821993419 | P7: 0.8259535955 | Q7: 0.6353489196 | R7: 3
A8: 4 | B8: 0.9499273616 | C8: R2 065 | D8: 0.6577821466 | E8: 2568.541345 | F8: 0.4514000768 | G8: 0 | H8: 0.3587814008 | I8: 4 | J8: 16 | K8: 0 | L8: 2.458691994 | M8: 0.4225 | N8: 0.2596993419 | O8: 0.6821993419 | P8: 0.8259535955 | Q8: 0.6353489196 | R8: 4
A9: 5 | B9: 0.9098392698 | C9: R2 032 | D9: 1.129150703 | E9: 1450.877272 | F9: 0.4376990187 | G9: 0 | H9: 0.2090066448 | I9: 4 | J9: 16 | K9: 0 | L9: 2.458691994 | M9: 0.4225 | N9: 0.2596993419 | O9: 0.6821993419 | P9: 0.8259535955 | Q9: 0.6353489196 | R9: 5
A10: 6 | B10: 0.8983399913 | C10: R2 076 | D10: 0.9886167122 | E10: 2867.263129 | F10: 0.757335795 | G10: 1 | H10: 0.2387173887 | I10: 5 | J10: 25 | K10: 0.2387173887 | L10: 2.697409383 | M10: 0.338 | N10: 0.1823448743 | O10: 0.5203448743 | P10: 0.7213493427 | Q10: 0.5548841098 | R10: 6
A11: 7 | B11: 0.8876840997 | C11: R2 134 | D11: 1.325824749 | E11: 2167.253082 | F11: 0.7676950438 | G11: 5 | H11: 0.1780024096 | I11: 10 | J11: 100 | K11: 4.450060241 | L11: 7.147469623 | M11: 0.169 | N11: 0.1207922366 | O11: 0.2897922366 | P11: 0.5383235427 | Q11: 0.4140950329 | R11: 7
A12: 8 | B12: 0.8423581116 | C12: R2 765 | D12: 0.7782336713 | E12: 2638.738002 | F12: 0.5486549162 | G12: 2 | H12: 0.3032508213 | I12: 12 | J12: 144 | K12: 1.213003285 | L12: 8.360472909 | M12: 0.1408333333 | N12: 0.098119439 | O12: 0.2389527723 | P12: 0.4888279578 | Q12: 0.376021506 | R12: 8
A13: 9 | B13: 0.8374991088 | C13: R2 333 | D13: 0.7370658822 | E13: 3482.207379 | F13: 0.685731226 | G13: 0 | H13: 0.3201884739 | I13: 12 | J13: 144 | K13: 0 | L13: 8.360472909 | M13: 0.1408333333 | N13: 0.098119439 | O13: 0.2389527723 | P13: 0.4888279578 | Q13: 0.376021506 | R13: 9
A14: 10 | B14: 0.8087551224 | C14: R2 099 | D14: 1.400072635 | E14: 1816.06828 | F14: 0.6793220732 | G14: 2 | H14: 0.1685626832 | I14: 14 | J14: 196 | K14: 0.6742507327 | L14: 9.034723641 | M14: 0.1207142857 | N14: 0.07790144364 | O14: 0.1986157294 | P14: 0.4456632466 | Q14: 0.342817882 | R14: 10
A15: 11 | B15: 0.7819151985 | C15: R2 022 | D15: 0.3950371003 | E15: 872.4261429 | F15: 0.09207877691 | G15: 0 | H15: 0.5974122427 | I15: 14 | J15: 196 | K15: 0 | L15: 9.034723641 | M15: 0.1207142857 | N15: 0.07790144364 | O15: 0.1986157294 | P15: 0.4456632466 | Q15: 0.342817882 | R15: 11
A16: 12 | B16: 0.7733336466 | C16: R2 098 | D16: 0.8702205872 | E16: 833.964186 | F16: 0.1938963974 | G16: 0 | H16: 0.2711956066 | I16: 14 | J16: 196 | K16: 0 | L16: 9.034723641 | M16: 0.1207142857 | N16: 0.07790144364 | O16: 0.1986157294 | P16: 0.4456632466 | Q16: 0.342817882 | R16: 12
A17: 13 | B17: 0.7598416408 | C17: R2 234 | D17: 0.4824369964 | E17: 3645.62608 | F17: 0.4699002904 | G17: 1 | H17: 0.4891830473 | I17: 15 | J17: 225 | K17: 0.4891830473 | L17: 9.523906689 | M17: 0.1126666667 | N17: 0.07153512135 | O17: 0.184201788 | P17: 0.4291873577 | Q17: 0.3301441213 | R17: 13
A18: 14 | B18: 0.7259350296 | C18: R2 123 | D18: 0.9305821106 | E18: 1239.350358 | F18: 0.3081355329 | G18: 1 | H18: 0.2536047032 | I18: 16 | J18: 256 | K18: 0.2536047032 | L18: 9.777511392 | M18: 0.105625 | N18: 0.06454685255 | O18: 0.1701718525 | P18: 0.4125189117 | Q18: 0.3173222398 | R18: 14
A19: 15 | B19: 0.7244192313 | C19: R2 555 | D19: 1.782446126 | E19: 1440.868742 | F19: 0.6861733054 | G19: 0 | H19: 0.1324023186 | I19: 16 | J19: 256 | K19: 0 | L19: 9.777511392 | M19: 0.105625 | N19: 0.06454685255 | O19: 0.1701718525 | P19: 0.4125189117 | Q19: 0.3173222398 | R19: 15
A20: 16 | B20: 0.717699695 | C20: R2 443 | D20: 0.8572466048 | E20: 521.5175889 | F20: 0.1194449299 | G20: 0 | H20: 0.2753000113 | I20: 16 | J20: 256 | K20: 0 | L20: 9.777511392 | M20: 0.105625 | N20: 0.06454685255 | O20: 0.1701718525 | P20: 0.4125189117 | Q20: 0.3173222398 | R20: 16
A21: 17 | B21: 0.6842001535 | C21: R2 767 | D21: 1.196392436 | E21: 943.0677363 | F21: 0.3014460047 | G21: 0 | H21: 0.1972596891 | I21: 16 | J21: 256 | K21: 0 | L21: 9.777511392 | M21: 0.105625 | N21: 0.06454685255 | O21: 0.1701718525 | P21: 0.4125189117 | Q21: 0.3173222398 | R21: 17
A22: 18 | B22: 0.6466492794 | C22: R2 236 | D22: 1.134502844 | E22: 3647.359549 | F22: 1.105546852 | G22: 1 | H22: 0.2080206331 | I22: 17 | J22: 289 | K22: 0.2080206331 | L22: 9.985532025 | M22: 0.09941176471 | N22: 0.05839290354 | O22: 0.1578046682 | P22: 0.3972463571 | Q22: 0.3055741209 | R22: 18
A23: 19 | B23: 0.6364614422 | C23: R2 763 | D23: 0.3109506077 | E23: 2842.635247 | F23: 0.236159561 | G23: 0 | H23: 0.7589629806 | I23: 17 | J23: 289 | K23: 0 | L23: 9.985532025 | M23: 0.09941176471 | N23: 0.05839290354 | O23: 0.1578046682 | P23: 0.3972463571 | Q23: 0.3055741209 | R23: 19
A24: 20 | B24: 0.5696542251 | C24: R2 584 | D24: 1.440185258 | E24: 3283.007445 | F24: 1.26323228 | G24: 0 | H24: 0.163867807 | I24: 17 | J24: 289 | K24: 0 | L24: 9.985532025 | M24: 0.09941176471 | N24: 0.05839290354 | O24: 0.1578046682 | P24: 0.3972463571 | Q24: 0.3055741209 | R24: 20
A25: 21 | B25: 0.5646764423 | C25: R2 942 | D25: 0.3930890131 | E25: 3817.131143 | F25: 0.4008860763 | G25: 0 | H25: 0.6003729236 | I25: 17 | J25: 289 | K25: 0 | L25: 9.985532025 | M25: 0.09941176471 | N25: 0.05839290354 | O25: 0.1578046682 | P25: 0.3972463571 | Q25: 0.3055741209 | R25: 21
A26: 22 | B26: 0.5640781757 | C26: R2 583 | D26: 1.619451942 | E26: 3657.036417 | F26: 1.582305494 | G26: 5 | H26: 0.1457283133 | I26: 22 | J26: 484 | K26: 3.643207833 | L26: 13.62873986 | M26: 0.07681818182 | N26: 0.04758795529 | O26: 0.1244061371 | P26: 0.3527125417 | Q26: 0.2713173398 | R26: 22
A27: 23 | B27: 0.5377167779 | C27: R2 947 | D27: 0.1530799909 | E27: 1630.927054 | F27: 0.06670308967 | G27: 0 | H27: 1.541677646 | I27: 22 | J27: 484 | K27: 0 | L27: 13.62873986 | M27: 0.07681818182 | N27: 0.04758795529 | O27: 0.1244061371 | P27: 0.3527125417 | Q27: 0.2713173398 | R27: 23
A28: 24 | B28: 0.5281326547 | C28: R2 396 | D28: 1.561644976 | E28: 1725.112811 | F28: 0.719768431 | G28: 0 | H28: 0.1511226967 | I28: 22 | J28: 484 | K28: 0 | L28: 13.62873986 | M28: 0.07681818182 | N28: 0.04758795529 | O28: 0.1244061371 | P28: 0.3527125417 | Q28: 0.2713173398 | R28: 24
A29: 25 | B29: 0.5137115675 | C29: R2 483 | D29: 0.8619823797 | E29: 3461.327166 | F29: 0.7971389409 | G29: 1 | H29: 0.2737874991 | I29: 23 | J29: 529 | K29: 0.2737874991 | L29: 13.90252736 | M29: 0.07347826087 | N29: 0.04441450138 | O29: 0.1178927623 | P29: 0.3433551547 | Q29: 0.2641193498 | R29: 25
A30: 26 | B30: 0.5072784162 | C30: R2 846 | D30: 0.2886134233 | E30: 3069.432255 | F30: 0.2366832722 | G30: 0 | H30: 0.817702785 | I30: 23 | J30: 529 | K30: 0 | L30: 13.90252736 | M30: 0.07347826087 | N30: 0.04441450138 | O30: 0.1178927623 | P30: 0.3433551547 | Q30: 0.2641193498 | R30: 26
A31: 27 | B31: 0.4975641718 | C31: R2 490 | D31: 1.088216552 | E31: 472.2275162 | F31: 0.1372965432 | G31: 0 | H31: 0.2168685998 | I31: 23 | J31: 529 | K31: 0 | L31: 13.90252736 | M31: 0.07347826087 | N31: 0.04441450138 | O31: 0.1178927623 | P31: 0.3433551547 | Q31: 0.2641193498 | R31: 27
A32: 28 | B32: 0.4971053255 | C32: R2 794 | D32: 0.1058322342 | E32: 3191.105083 | F32: 0.09023022836 | G32: 0 | H32: 2.229944418 | I32: 23 | J32: 529 | K32: 0 | L32: 13.90252736 | M32: 0.07347826087 | N32: 0.04441450138 | O32: 0.1178927623 | P32: 0.3433551547 | Q32: 0.2641193498 | R32: 28
A33: 29 | B33: 0.4478974536 | C33: R2 284 | D33: 0.5314226218 | E33: 3312.772283 | F33: 0.4703537466 | G33: 0 | H33: 0.4440909933 | I33: 23 | J33: 529 | K33: 0 | L33: 13.90252736 | M33: 0.07347826087 | N33: 0.04441450138 | O33: 0.1178927623 | P33: 0.3433551547 | Q33: 0.2641193498 | R33: 29
A34: 30 | B34: 0.4406989219 | C34: R2 664 | D34: 1.501593909 | E34: 1960.071388 | F34: 0.7863526834 | G34: 0 | H34: 0.1571663274 | I34: 23 | J34: 529 | K34: 0 | L34: 13.90252736 | M34: 0.07347826087 | N34: 0.04441450138 | O34: 0.1178927623 | P34: 0.3433551547 | Q34: 0.2641193498 | R34: 30
A35: 31 | B35: 0.3603877751 | C35: R2 883 | D35: 1.672631593 | E35: 1394.726038 | F35: 0.6232785636 | G35: 0 | H35: 0.1410950271 | I35: 23 | J35: 529 | K35: 0 | L35: 13.90252736 | M35: 0.07347826087 | N35: 0.04441450138 | O35: 0.1178927623 | P35: 0.3433551547 | Q35: 0.2641193498 | R35: 31
A36: 32 | B36: 0.3549672402 | C36: R2 521 | D36: 0.7361229612 | E36: 2183.525123 | F36: 0.4294390602 | G36: 2 | H36: 0.3205986125 | I36: 25 | J36: 625 | K36: 1.28239445 | L36: 15.18492181 | M36: 0.0676 | N36: 0.04106002856 | O36: 0.1086600286 | P36: 0.3296362064 | Q36: 0.2535663126 | R36: 32
A37: 33 | B37: 0.324594597 | C37: R2 403 | D37: 1.67297235 | E37: 3565.300756 | F37: =D37*E37*365*EXP(-0.312)/1000000 -> 1.593594861 | G37: 1 | H37: =0.236/D37 -> 0.1410662884 | I37: =I36+G37 -> 26 | J37: =I37^2 -> 676 | K37: =H37*G37^2 -> 0.1410662884 | L37: =L36+K37 -> 15.32598809 | M37: 0.065 | N37: =IF(I37=0,"",$B$3^2*L37/(I37)^2) -> 0.03831497024 | O37: =IF(M37="","",N37+M37) -> 0.1033149702 | P37: 0.3214264616 | Q37: 0.2472511243 | R37: 33
A38: 34 | B38: 0.3004004631 | C38: R2 720 | D38: 0.1163036418 | E38: 1546.527197 | F38: 0.04805558425 | G38: 0 | H38: 2.029171197 | I38: 26 | J38: 676 | K38: 0 | L38: 15.32598809 | M38: =IF(I38=0,"",$B$3^2/I38) -> 0.065 | N38: 0.03831497024 | O38: 0.1033149702 | P38: =SQRT(O38) -> 0.3214264616 | Q38: =P38/$B$3 -> 0.2472511243 | R38: 34
A39: 35 | B39: 0.2702683421 | C39: R2 522 | D39: 1.303244776 | E39: 3004.035775 | F39: 1.045981683 | G39: 3 | H39: 0.1810864731 | I39: 29 | J39: 841 | K39: 1.629778258 | L39: 16.95576635 | M39: 0.05827586207 | N39: 0.03407282418 | O39: 0.09234868625 | P39: 0.3038892664 | Q39: 0.2337609742 | R39: 35
A40: 36 | B40: 0.2504595402 | C40: R2 560 | D40: 1.570543342 | E40: 995.0920974 | F40: 0.41754779 | G40: 0 | H40: 0.1502664675 | I40: 29 | J40: 841 | K40: 0 | L40: 16.95576635 | M40: 0.05827586207 | N40: 0.03407282418 | O40: 0.09234868625 | P40: 0.3038892664 | Q40: 0.2337609742 | R40: 36
A41: 37 | B41: 0.2387542646 | C41: R2 110 | D41: 1.756699607 | E41: 70.25947516 | F41: 0.03297580389 | G41: 0 | H41: 0.1343428319 | I41: 29 | J41: 841 | K41: 0 | L41: 16.95576635 | M41: 0.05827586207 | N41: 0.03407282418 | O41: 0.09234868625 | P41: 0.3038892664 | Q41: 0.2337609742 | R41: 37
A42: 38 | B42: 0.2375897172 | C42: R2 389 | D42: 0.04955893284 | E42: 3209.071092 | F42: 0.04249073764 | G42: 0 | H42: 4.7620073 | I42: 29 | J42: 841 | K42: 0 | L42: 16.95576635 | M42: 0.05827586207 | N42: 0.03407282418 | O42: 0.09234868625 | P42: 0.3038892664 | Q42: 0.2337609742 | R42: 38
A43: 39 | B43: 0.2200609366 | C43: R2 174 | D43: 0.8672819954 | E43: 1588.809251 | F43: 0.3681502303 | G43: 0 | H43: 0.2721144925 | I43: 29 | J43: 841 | K43: 0 | L43: 16.95576635 | M43: 0.05827586207 | N43: 0.03407282418 | O43: 0.09234868625 | P43: 0.3038892664 | Q43: 0.2337609742 | R43: 39
A44: 40 | B44: 0.1949088628 | C44: R2 945 | D44: 1.084078311 | E44: 2205.066025 | F44: 0.6386681218 | G44: 0 | H44: 0.2176964502 | I44: 29 | J44: 841 | K44: 0 | L44: 16.95576635 | M44: 0.05827586207 | N44: 0.03407282418 | O44: 0.09234868625 | P44: 0.3038892664 | Q44: 0.2337609742 | R44: 40
A45: 41 | B45: 0.1908672262 | C45: R2 492 | D45: 0.7989339313 | E45: 2520.771641 | F45: 0.5380682383 | G45: 1 | H45: 0.2953936374 | I45: 30 | J45: 900 | K45: 0.2953936374 | L45: 17.25115999 | M45: 0.05633333333 | N45: 0.03239384487 | O45: 0.0887271782 | P45: 0.2978710765 | Q45: 0.2291315973 | R45: 41
A46: 42 | B46: 0.1685847662 | C46: R2 237 | D46: 1.271793367 | E46: 3033.94898 | F46: 1.030903027 | G46: 2 | H46: 0.1855647357 | I46: 32 | J46: 1024 | K46: 0.742258943 | L46: 17.99341893 | M46: 0.0528125 | N46: 0.02969616992 | O46: 0.08250866992 | P46: 0.2872432243 | Q46: 0.2209563264 | R46: 42
A47: 43 | B47: 0.1483320943 | C47: R2 999 | D47: 1.018339085 | E47: 1044.516107 | F47: 0.2841846002 | G47: 1 | H47: 0.2317499186 | I47: 33 | J47: 1089 | K47: 0.2317499186 | L47: 18.22516885 | M47: 0.05121212121 | N47: 0.02828331989 | O47: 0.0794954411 | P47: 0.2819493591 | Q47: 0.2168841224 | R47: 43
A48: 44 | B48: 0.1228713198 | C48: R2 826 | D48: 0.07192074544 | E48: 3555.472431 | F48: 0.06831946891 | G48: 0 | H48: 3.281389793 | I48: 33 | J48: 1089 | K48: 0 | L48: 18.22516885 | M48: 0.05121212121 | N48: 0.02828331989 | O48: 0.0794954411 | P48: 0.2819493591 | Q48: 0.2168841224 | R48: 44
A49: 45 | B49: 0.0726588886 | C49: R2 722 | D49: 1.404981912 | E49: 2562.099904 | F49: 0.9617446505 | G49: 0 | H49: 0.1679736928 | I49: 33 | J49: 1089 | K49: 0 | L49: 18.22516885 | M49: 0.05121212121 | N49: 0.02828331989 | O49: 0.0794954411 | P49: 0.2819493591 | Q49: 0.2168841224 | R49: 45
A50: 46 | B50: 0.03068215439 | C50: R2 291 | D50: 0.1264423818 | E50: 3979.553076 | F50: 0.1344373538 | G50: 0 | H50: 1.866462785 | I50: 33 | J50: 1089 | K50: 0 | L50: 18.22516885 | M50: 0.05121212121 | N50: 0.02828331989 | O50: 0.0794954411 | P50: 0.2819493591 | Q50: 0.2168841224 | R50: 46
A51: 47 | B51: 0.0244526397 | C51: R2 440 | D51: 1.432888452 | E51: 1176.555698 | F51: 0.4504202011 | G51: 0 | H51: 0.1647022835 | I51: 33 | J51: 1089 | K51: 0 | L51: 18.22516885 | M51: 0.05121212121 | N51: 0.02828331989 | O51: 0.0794954411 | P51: 0.2819493591 | Q51: 0.2168841224 | R51: 47
A52: 48 | B52: 0.01810681977 | C52: R2 204 | D52: 0.8606133696 | E52: 2541.971092 | F52: 0.5844827282 | G52: 0 | H52: 0.2742230232 | I52: 33 | J52: 1089 | K52: 0 | L52: 18.22516885 | M52: 0.05121212121 | N52: 0.02828331989 | O52: 0.0794954411 | P52: 0.2819493591 | Q52: 0.2168841224 | R52: 48
A53: 49 | B53: 0.01541349332 | C53: R2 185 | D53: 1.927956607 | E53: 2218.907948 | F53: 1.142956039 | G53: 1 | H53: 0.122409394 | I53: 34 | J53: 1156 | K53: 0.122409394 | L53: 18.34757825 | M53: 0.04970588235 | N53: 0.02682301664 | O53: 0.07652889899 | P53: 0.276638571 | Q53: 0.2127989008 | R53: 49
A54: 50 | B54: 0.01074775886 | C54: R2 452 | D54: 0.3959984628 | E54: 3186.184625 | F54: 0.3370989686 | G54: 0 | H54: 0.5959619094 | I54: 34 | J54: 1156 | K54: 0 | L54: 18.34757825 | M54: 0.04970588235 | N54: 0.02682301664 | O54: 0.07652889899 | P54: 0.276638571 | Q54: 0.2127989008 | R54: 50
A55: Sum | F55: =SUM(F5:F54) -> 25.84342564 | G55: =SUM(G5:G54) -> 34
